bitfinex-derivatives/quotes_BNBF0:USTF0_20250329
["timestamp","ask_amount","ask_price","bid_price","bid_amount"]
[1743242972996,6.39749914,605.59,605.04,0.27083701]
[1743242973196,6.39749914,605.58,605.02,0.28744058]
[1743242973394,3.4793136,605.61,605.02,0.28744058]
[1743242973395,6.39749914,605.57,605.03,0.27083701]
[1743242973596,3.4793136,605.61,605.03,0.27083701]
[1743242973597,6.39749914,605.56,605.03,0.27083701]
[1743242973796,6.39749914,605.55,605.03,0.27083701]
[1743242974097,6.39750503,605.54,605.03,0.27083701]
[1743242974296,6.3975125,605.53,605.03,0.27083701]
[1743242974498,5.90208675,605.52,605.03,0.27083701]
[1743242974801,5.90208675,605.51,605.03,0.27083701]
[1743242974997,5.90208675,605.5,605.03,0.27083701]
[1743242975191,3.75098297,605.49,605.03,0.27083701]
[1743242975390,3.75098297,605.48,605.03,0.27083701]
[1743242975590,3.75098297,605.47,605.03,0.27083701]
[1743242975793,3.75098297,605.46,605.03,0.27083701]
[1743242975997,2.27003336,605.45,605.02,0.28746195]
[1743242976201,2.27003336,605.44,605.02,0.28746195]
[1743242976493,5.08878983,605.43,605.03,0.27083342]
[1743242976701,2.27003336,605.42,605.03,0.27083342]
[1743242976999,0.9255935,605.41,605.03,0.27083342]
[1743242977194,2.27043038,605.4,605.03,0.27083342]
[1743242977397,2.27043038,605.39,605.03,0.27083342]
[1743242977697,0.9255935,605.38,605.03,0.27083342]
[1743242977895,0.9255935,605.37,605.03,0.27083342]
[1743242978094,0.9260086,605.36,605.03,0.27083342]
[1743242978296,1.0841371,605.36,605.03,0.27083342]
[1743242978895,1.0841371,605.36,604.95,0.27083342]
[1743242979194,2.01037534,605.35,605.02,0.28749401]
[1743242979395,0.92623824,605.34,605.03,0.27083342]
[1743242979599,0.92624119,605.33,605.03,0.27083342]
[1743242979902,1.0841371,605.35,605.03,0.27083342]
[1743242980103,1.0841371,605.32,605.03,0.27083342]
[1743242980901,1.0841371,605.31,605.03,0.27083342]
[1743242981603,1.63187192,605.61,605.03,0.27083342]
[1743242981799,6.40387416,605.6,605.03,0.27083342]
[1743242982099,6.40387416,605.6,604.92,1.23221343]
[1743242982100,6.40387416,605.59,605.04,0.27083342]
[1743242982397,6.40387416,605.58,605.05,0.27083342]
[1743242982598,6.40387416,605.57,605.06,0.27083342]
[1743242982797,6.40387416,605.56,605.03,0.27083342]
[1743242982998,6.40387416,605.55,605.04,0.27083342]
[1743242983302,6.40387416,605.54,605.05,0.27083342]
[1743242983504,9.88628905,605.53,605.03,0.27083342]
[1743242983703,5.90847423,605.52,605.03,0.27083342]
[1743242983898,5.90847423,605.51,605.03,0.27083342]
[1743242984098,3.48241489,605.53,605.03,0.27083342]
[1743242984099,5.90847423,605.5,605.03,0.27083342]
[1743242984300,3.755041,605.49,605.03,0.27083342]
[1743242984606,2.27249009,605.48,605.03,0.27083342]
[1743242984807,2.2724384,605.47,605.03,0.27083342]
[1743242985009,0.92656872,605.46,605.02,0.28744652]
[1743242985207,0.92656872,605.45,605.03,0.27083342]
[1743242985403,2.821904,605.48,605.03,0.27083342]
[1743242985604,1.08534769,605.45,605.03,0.27083342]
[1743242986004,1.08534769,605.44,605.03,0.27083342]
[1743242986602,1.63187192,605.76,605.03,0.27083342]
[1743242986808,5.90815571,605.75,605.03,0.27083342]
[1743242987009,5.90815571,605.74,605.03,0.27083342]
[1743242987207,3.75482232,605.73,605.03,0.27083342]
[1743242987402,3.75482232,605.72,605.03,0.27083342]
[1743242987607,3.48196895,605.74,605.03,0.27083342]
[1743242987608,2.27236758,605.71,605.03,0.27083342]
[1743242987808,0.92653421,605.7,605.03,0.27083342]
[1743242988008,3.48196895,605.74,605.08,1.23221343]
[1743242988009,0.92653421,605.69,605.08,1.23221343]
[1743242988205,0.92653421,605.68,605.09,0.27083342]
[1743242988405,1.08524034,605.7,605.09,0.27083342]
[1743242988611,0.92614272,605.69,605.09,0.27083342]
[1743242988809,1.08524034,605.7,605.09,0.27083342]
[1743242989011,0.92614599,605.69,605.09,0.27083342]
[1743242989308,0.92585373,605.68,605.09,0.27083342]
[1743242989508,0.92585373,605.67,605.09,0.27083342]
[1743242989712,1.08524034,605.66,605.09,0.27083342]
[1743242990508,1.08524034,605.65,605.09,0.27083342]
[1743242990709,1.08524034,605.65,605.14,1.23221343]
[1743242990909,1.08524034,605.65,605.15,0.27083342]
[1743242991107,1.08524034,605.64,605.15,0.27083342]
[1743242992008,1.63187192,605.96,605.15,0.27083342]
[1743242992215,6.39557076,605.95,605.15,0.27083342]
[1743242992513,6.39557076,605.94,605.15,0.27083342]
[1743242992715,6.39475955,605.93,605.15,0.27083342]
[1743242992908,6.39475955,605.92,605.15,0.27083342]
[1743242993114,6.39475955,605.91,605.18,1.23221343]
[1743242993314,6.39475955,605.9,605.19,0.27083342]
[1743242993506,6.39475955,605.89,605.19,0.27083342]
[1743242993712,6.39475955,605.88,605.19,0.27083342]
[1743242993907,6.39475955,605.87,605.18,1.23221343]
[1743242994108,6.39475955,605.86,605.19,0.27072506]
[1743242994315,6.39475955,605.85,605.19,0.27072506]
[1743242994515,6.39475955,605.84,605.19,0.27072506]
[1743242994713,2.90092622,605.83,605.19,0.27072506]
[1743242994912,5.89802134,605.82,605.19,0.27072506]
[1743242995111,5.89802134,605.81,605.19,0.27072506]
[1743242995313,5.89802134,605.8,605.19,1.50293849]
[1743242995509,5.89802134,605.79,605.2,0.27072506]
[1743242995715,5.89802134,605.78,605.2,0.27072506]
[1743242996011,3.7489005,605.77,605.2,0.27072506]
[1743242996211,5.8967719,605.76,605.2,0.27072506]
[1743242996416,9.37428064,605.75,605.2,0.27072506]
[1743242996615,3.7489005,605.74,605.2,0.27072506]
[1743242996811,3.74526938,605.73,605.2,0.27072506]
[1743242997010,5.89303216,605.72,605.2,0.27072506]
[1743242997209,5.89303216,605.71,605.2,0.27072506]
[1743242997415,5.89303216,605.7,605.21,0.2707112]
[1743242997615,3.74526938,605.69,605.2,0.2707112]
[1743242997813,3.74526938,605.68,605.21,0.2707112]
[1743242998011,3.74526938,605.68,605.19,1.23221343]
[1743242998012,3.74526938,605.67,605.26,1.23221343]
[1743242998218,3.74526938,605.66,605.27,0.2707112]
[1743242998416,3.74526938,605.65,605.27,0.2707112]
[1743242998615,2.2665921,605.64,605.27,0.2707112]
[1743242998812,2.2665921,605.63,605.27,0.2707112]
[1743242999008,2.2665921,605.62,605.27,0.2707112]
[1743242999213,0.9241733,605.61,605.27,0.2707112]
[1743242999413,0.9241733,605.6,605.27,0.2707112]
[1743242999609,0.9241733,605.59,605.27,0.2707112]
[1743242999814,0.9241733,605.58,605.27,0.2707112]
[1743243000015,1.08354356,605.64,605.27,0.2707112]
[1743243000317,1.08354356,605.58,605.28,0.2707112]
[1743243000617,1.08354356,605.58,605.29,0.2707112]
[1743243000815,1.08354356,605.58,605.2,0.2707112]
[1743243001012,1.08354356,605.57,605.2,0.2707112]
[1743243001819,1.63187192,605.85,605.2,0.2707112]
[1743243002019,6.38380901,605.84,605.2,0.2707112]
[1743243002220,6.38355394,605.83,605.2,0.2707112]
[1743243002422,6.38355394,605.82,605.2,0.2707112]
[1743243002623,6.38355394,605.81,605.22,1.23221343]
[1743243002824,5.8883987,605.8,605.23,0.2707112]
[1743243003024,3.74225412,605.79,605.23,0.2707112]
[1743243003219,3.74225412,605.78,605.23,0.2707112]
[1743243003422,3.74225412,605.77,605.23,0.2707112]
[1743243003624,2.81202204,605.78,605.23,0.2707112]
[1743243003625,3.74225412,605.76,605.23,0.2707112]
[1743243003823,3.74225412,605.75,605.23,0.2707112]
[1743243004021,3.74225412,605.74,605.23,0.2707112]
[1743243004225,2.26441655,605.73,605.23,0.2707112]
[1743243004423,0.92307619,605.72,605.23,0.2707112]
[1743243004622,0.92307619,605.71,605.31,1.23221343]
[1743243004825,0.92307619,605.7,605.32,0.2707112]
[1743243005025,0.92307619,605.69,605.33,0.27064973]
[1743243005224,0.92307619,605.68,605.32,0.27064973]
[1743243005426,1.08154694,605.7,605.33,0.27064973]
[1743243005626,0.9227099,605.69,605.31,1.23221343]
[1743243005923,1.08154694,605.7,605.32,0.27065494]
[1743243006128,1.08154694,605.68,605.32,0.27065494]
[1743243006722,1.08154694,605.68,605.3,0.27065494]
[1743243006921,1.63187192,605.95,605.3,0.27065494]
[1743243007222,6.37868499,605.94,605.29,1.23221343]
[1743243007529,6.37868499,605.93,605.3,0.27062604]
[1743243007720,6.37868499,605.92,605.3,0.27062604]
[1743243007920,6.37868499,605.91,605.3,0.27062604]
[1743243008125,6.37868499,605.9,605.3,0.27062604]
[1743243008425,6.37868499,605.89,605.3,0.27062604]
[1743243008728,6.37868499,605.88,605.3,0.27062604]
[1743243008923,6.37868499,605.87,605.3,0.27062604]
[1743243009125,6.37868499,605.86,605.29,1.23221343]
[1743243009322,3.46973427,605.88,605.3,0.27062728]
[1743243009323,2.39894738,605.85,605.3,0.27062728]
[1743243009523,2.39894738,605.84,605.32,1.23221343]
[1743243009822,0.92267207,605.83,605.33,0.27062728]
[1743243010028,0.92267207,605.82,605.33,0.27062728]
[1743243010226,3.46973427,605.83,605.33,0.27062728]
[1743243010426,0.92292811,605.82,605.33,0.27062728]
[1743243010625,3.46973427,605.83,605.33,0.27062728]
[1743243010829,1.08063315,605.81,605.33,0.27062728]
[1743243011630,1.08063315,605.8,605.33,0.27062728]
[1743243012531,1.08063315,605.79,605.34,0.27062728]
[1743243012728,1.08063315,605.79,605.35,0.27061277]
[1743243012926,1.08063315,605.79,605.36,0.27061277]
[1743243013126,1.63187192,606.09,605.32,0.27061277]
[1743243013325,6.38125311,606.08,605.33,0.27061277]
[1743243013527,6.38125311,606.07,605.32,0.27061277]
[1743243013730,6.38125311,606.06,605.32,0.27061277]
[1743243014026,6.38125311,606.05,605.32,0.27061277]
[1743243014226,6.38125311,606.04,605.32,0.27061277]
[1743243014425,6.38125311,606.03,605.32,0.27061277]
[1743243014629,6.38125311,606.02,605.32,0.27061277]
[1743243014829,6.38125311,606.01,605.32,0.27061277]
[1743243015033,6.38125311,606.0,605.43,1.23221343]
[1743243015226,6.38125311,605.99,605.44,0.27061277]
[1743243015427,6.38125311,605.98,605.44,0.27061277]
[1743243015628,9.8502126,605.97,605.44,0.27061277]
[1743243015828,6.38125311,605.96,605.44,0.27061277]
[1743243016031,5.88620835,605.95,605.44,0.27061277]
[1743243016227,5.88620835,605.94,605.44,0.27061277]
[1743243016433,5.88380247,605.93,605.44,0.27061277]
[1743243016633,5.88380247,605.92,605.44,0.27061277]
[1743243016836,6.37888453,605.91,605.44,0.27061277]
[1743243017035,6.37888453,605.9,605.44,0.27061277]
[1743243017234,6.37888453,605.89,605.44,0.27061277]
[1743243017430,6.37888453,605.88,605.42,0.27061277]
[1743243017630,6.37888453,605.87,605.42,0.27061277]
[1743243017829,6.37888453,605.86,605.42,0.27061277]
[1743243018035,6.37888453,605.85,605.42,0.27061277]
[1743243018237,5.88380247,605.84,605.42,0.27061277]
[1743243018537,5.88319119,605.83,605.42,0.27061277]
[1743243018736,3.73893818,605.82,605.42,0.27061277]
[1743243018936,3.73893818,605.81,605.42,0.27061277]
[1743243019133,3.73893818,605.8,605.42,0.27061277]
[1743243019335,3.73893818,605.79,605.42,1.5028262]
[1743243019537,2.26276584,605.78,605.43,0.27061277]
[1743243019740,2.26276584,605.77,605.43,0.27061277]
[1743243019937,2.26276584,605.76,605.43,0.27061277]
[1743243020138,0.92260771,605.75,605.43,0.27061277]
[1743243020333,0.92260771,605.74,605.43,0.27061277]
[1743243020538,0.92308055,605.73,605.43,0.27061277]
[1743243020734,0.92308055,605.72,605.43,0.27061277]
[1743243020935,2.80889981,605.76,605.43,0.27061277]
[1743243021134,0.92308686,605.75,605.43,0.27061277]
[1743243021334,0.92308686,605.74,605.43,0.27061277]
[1743243021533,0.92308686,605.73,605.43,0.27061277]
[1743243021839,2.00343294,605.72,605.43,0.27061277]
[1743243022039,1.08034608,605.72,605.43,0.27061277]
[1743243022238,1.08034608,605.72,605.41,0.27061277]
[1743243022441,1.08034608,605.72,605.42,0.27061277]
[1743243022640,1.08034608,605.72,605.43,0.27061277]
[1743243022942,1.08034608,605.71,605.44,0.27061277]
[1743243023141,1.08034608,605.71,605.41,0.27061277]
[1743243023342,1.63187192,605.94,605.42,0.27061277]
[1743243023537,6.38465188,605.93,605.41,0.27061277]
[1743243023744,6.38465188,605.92,605.43,0.27061277]
[1743243023944,5.88956012,605.91,605.44,0.27061277]
[1743243024140,5.88956012,605.9,605.41,0.27061277]
[1743243024340,5.88956012,605.89,605.42,0.27061277]
[1743243024543,2.26521543,605.88,605.55,1.23221343]
[1743243024741,2.26521543,605.87,605.56,0.27061277]
[1743243024941,0.92360593,605.86,605.56,0.27061277]
[1743243025138,0.92360593,605.85,605.57,0.27063795]
[1743243025441,0.92360593,605.84,605.58,0.27063795]
[1743243025642,0.92360593,605.83,605.56,0.27063795]
[1743243025844,1.08176073,605.86,605.57,0.27063795]
[1743243026043,1.08176073,605.82,605.56,0.27063795]
[1743243026438,1.08176073,605.81,605.56,0.27063795]
[1743243026644,1.08176073,605.81,605.56,1.50285138]
[1743243026944,1.08176073,605.81,605.57,0.27063795]
[1743243027444,1.08176073,605.8,605.57,0.27063795]
[1743243028048,1.63187192,606.11,605.57,0.27063795]
[1743243028547,11.4913759,606.1,605.57,0.27063795]
[1743243028845,6.38617971,606.09,605.57,0.27063795]
[1743243029044,6.38617971,606.08,605.57,0.27063795]
[1743243029245,6.38617971,606.07,605.57,0.27063795]
[1743243029442,6.38617971,606.06,605.59,1.23221343]
[1743243029741,2.26580789,606.05,605.59,1.23221343]
[1743243029945,2.26580789,606.04,605.59,1.23221343]
[1743243030246,2.26580789,606.03,605.59,1.23221343]
[1743243030441,2.26580789,606.02,605.59,1.23221343]
[1743243030647,2.26580789,606.01,605.59,1.23221343]
[1743243030846,2.26629407,606.0,605.59,1.23221343]
[1743243031046,0.92384659,605.99,605.59,1.23221343]
[1743243031245,0.92384659,605.98,605.59,1.23221343]
[1743243031447,1.08200719,606.0,605.61,1.23221343]
[1743243031647,2.26665494,605.99,605.61,1.23221343]
[1743243031846,1.08200719,605.97,605.61,1.23221343]
[1743243032049,2.26665494,605.96,605.61,1.23221343]
[1743243032347,2.26665494,605.95,605.61,1.23221343]
[1743243032647,2.26665494,605.94,605.61,1.23221343]
[1743243032946,2.26665494,605.93,605.61,1.23221343]
[1743243033247,2.26665494,605.92,605.61,1.23221343]
[1743243033447,2.26665494,605.91,605.61,1.23221343]
[1743243033643,2.26665494,605.9,605.57,1.23221343]
[1743243033946,0.92420544,605.89,605.57,1.23221343]
[1743243034146,0.92420544,605.88,605.57,1.23221343]
[1743243034342,0.92420544,605.87,605.57,1.23221343]
[1743243034546,1.08200719,605.9,605.57,1.23221343]
[1743243034748,1.08200719,605.86,605.57,1.23221343]
[1743243035447,1.08200719,605.86,605.58,0.27058603]
[1743243035644,1.08200719,605.85,605.57,1.23221343]
[1743243035844,1.08200719,605.85,605.58,0.27056153]
[1743243036347,1.63187192,606.15,605.59,0.27056153]
[1743243036549,6.39108388,606.14,605.53,0.27056153]
[1743243036844,6.39117453,606.13,605.54,0.27056153]
[1743243037049,6.39117453,606.12,605.53,0.27056153]
[1743243037248,6.39117453,606.11,605.54,0.27056153]
[1743243037448,6.39117453,606.1,605.54,0.27056153]
[1743243037642,6.39117453,606.09,605.55,0.27056153]
[1743243037843,5.8962128,606.08,605.55,0.27056153]
[1743243038042,5.8962128,606.08,605.52,0.28722706]
[1743243038043,5.8962128,606.07,605.56,0.27056153]
[1743243038249,5.8962128,606.06,605.53,0.27056153]
[1743243038447,3.74719788,606.05,605.54,0.27056153]
[1743243038648,3.74719788,606.04,605.53,0.27056153]
[1743243038845,3.74765211,606.03,605.54,0.27056153]
[1743243039048,2.26822838,606.02,605.53,0.27056153]
[1743243039350,2.26822838,606.01,605.72,1.23221343]
[1743243039546,0.92463983,606.0,605.73,0.27056153]
[1743243039851,2.00756306,605.99,605.73,0.27056153]
[1743243040044,1.08292323,605.99,605.73,0.27056153]
[1743243040643,1.08292323,605.98,605.73,0.27056153]
[1743243041550,1.08292323,605.97,605.73,0.27056153]
[1743243041947,1.08292323,605.96,605.73,0.27056153]
[1743243042951,1.08292323,605.95,605.73,0.27056153]
[1743243043453,1.08292323,605.94,605.73,0.27056153]
[1743243043970,1.08292323,605.94,605.72,0.27056153]
[1743243044154,1.08292323,605.94,605.73,0.27056153]
[1743243044350,1.08292323,605.93,605.74,0.27056153]
[1743243044545,1.08292323,605.93,605.72,0.27056153]
[1743243044955,1.63187192,606.23,605.72,0.27056153]
[1743243045151,6.39813837,606.22,605.72,0.27056153]
[1743243045348,6.39813837,606.21,605.72,0.27056153]
[1743243045546,6.39813837,606.2,605.72,0.27056153]
[1743243045749,6.39813837,606.19,605.72,0.27056153]
[1743243046046,6.39813837,606.18,605.72,0.27056153]
[1743243046249,3.75165413,606.17,605.72,0.27056153]
[1743243046446,2.27047514,606.16,605.72,0.27056153]
[1743243046651,2.27047514,606.15,605.68,0.27056153]
[1743243046952,0.92621589,606.14,605.69,0.27056153]
[1743243047152,0.92621589,606.13,605.68,0.27056153]
[1743243047346,2.81866197,606.16,605.69,0.27056153]
[1743243047548,1.08410076,606.12,605.68,0.27056153]
[1743243047751,1.08410076,606.12,605.69,0.27056153]
[1743243047952,1.08410076,606.12,605.7,0.27056153]
[1743243048146,1.08410076,606.12,605.68,0.27056153]
[1743243048550,1.63187192,606.41,605.68,0.27056153]
[1743243048551,1.08410076,606.11,605.68,0.27056153]
[1743243048950,1.08410076,606.11,605.7,1.23221343]
[1743243049147,1.08410076,606.11,605.71,0.27056153]
[1743243049551,1.63187192,606.43,605.71,0.27056153]
[1743243049751,6.39723756,606.42,605.71,0.27056153]
[1743243049951,1.63187192,606.4,605.71,0.27056153]
[1743243050152,6.39723756,606.39,605.71,0.27056153]
[1743243050350,8.02910948,606.38,605.71,0.27056153]
[1743243050552,6.39723756,606.37,605.71,0.27056153]
[1743243050747,6.39723756,606.36,605.71,0.27056153]
[1743243050953,6.39723756,606.35,605.71,0.27056153]
[1743243051158,6.39723756,606.34,605.71,0.27056153]
[1743243051461,6.39723756,606.33,605.7,1.23221343]
[1743243051657,6.39723756,606.32,605.71,0.27048992]
[1743243051858,6.39723756,606.31,605.71,0.27048992]
[1743243052054,6.39723756,606.3,605.67,0.27048992]
[1743243052258,6.39723756,606.29,605.68,0.27048992]
[1743243052457,5.90241143,606.28,605.69,0.27048992]
[1743243052654,5.90241143,606.27,605.67,0.27048992]
[1743243052858,5.90115507,606.26,605.68,0.27048992]
[1743243053059,5.90115507,606.25,605.67,0.27048992]
[1743243053259,5.90115507,606.24,605.68,0.27048992]
[1743243053461,3.75032504,606.23,605.67,0.27048992]
[1743243053761,3.75032504,606.22,605.68,0.27048992]
[1743243053962,4.42058344,606.21,605.69,0.27048992]
[1743243054158,4.42090876,606.2,605.66,0.28713937]
[1743243054355,3.75057394,606.19,605.67,0.27048992]
[1743243054559,3.75057394,606.18,605.67,0.27048992]
[1743243054757,2.26989061,606.17,605.67,0.27048992]
[1743243054962,2.26989061,606.16,605.67,0.27048992]
[1743243055155,2.26989061,606.15,605.67,0.27048992]
[1743243055358,2.26989061,606.14,605.67,0.27048992]
[1743243055556,2.81846504,606.15,605.67,0.27048992]
[1743243055557,2.26989061,606.13,605.67,0.27048992]
[1743243055761,2.26989061,606.12,605.67,0.27048992]
[1743243055959,2.26989061,606.11,605.67,0.27048992]
[1743243056159,2.26989061,606.1,605.67,0.27048992]
[1743243056360,0.92549311,606.09,605.67,0.27048992]
[1743243056563,0.92549311,606.08,605.67,0.27048992]
[1743243056763,0.92549311,606.07,605.67,0.27048992]
[1743243056962,1.08402501,606.11,605.67,0.27048992]
[1743243057268,1.08402501,606.07,605.67,0.27048992]
[1743243058160,1.08402501,606.06,605.67,0.27048992]
[1743243058965,1.63187192,606.41,605.67,0.27048992]
[1743243059267,6.39677301,606.4,605.67,0.27048992]
[1743243059466,9.87486815,606.39,605.67,0.27048992]
[1743243059668,6.39677301,606.38,605.67,0.27048992]
[1743243059866,6.39677301,606.37,605.67,0.27048992]
[1743243060165,6.39677301,606.36,605.67,0.27048992]
[1743243060362,6.39677301,606.35,605.67,0.27048992]
[1743243060566,3.49560311,606.34,605.67,0.27048992]
[1743243060866,6.39706611,606.33,605.67,0.27048992]
[1743243061065,6.39706611,606.32,605.67,0.27048992]
[1743243061269,5.90230538,606.31,605.67,0.27048992]
[1743243061462,4.42125783,606.3,605.67,0.27048992]
[1743243061667,4.42125783,606.29,605.67,0.27048992]
[1743243061965,4.42125783,606.28,605.67,0.27048992]
[1743243062166,2.27011745,606.27,605.67,0.27048992]
[1743243062366,2.27011745,606.26,605.67,0.27048992]
[1743243062667,2.27011745,606.26,605.68,1.23221343]
[1743243062668,2.27012142,606.25,605.68,1.23221343]
[1743243062860,0.92565472,606.24,605.69,0.27048992]
[1743243063068,2.81838375,606.26,605.69,0.27048992]
[1743243063069,0.92565472,606.23,605.69,0.27048992]
[1743243063366,0.92565472,606.22,605.69,0.27048992]
[1743243063567,1.08399375,606.23,605.69,0.27048992]
[1743243063964,2.00920068,606.22,605.7,1.567]
[1743243064166,0.92520693,606.21,605.71,0.27048992]
[1743243064366,0.92512487,606.2,605.71,1.84348992]
[1743243064562,1.08399375,606.22,605.72,0.27048992]
[1743243064766,2.00913208,606.21,605.72,1.50270335]
[1743243064966,2.26889368,606.2,605.72,1.50270335]
[1743243065265,2.26889368,606.2,605.73,0.27049266]
[1743243065266,3.74881324,606.19,605.73,0.27049266]
[1743243065567,5.89867189,606.18,605.73,0.27049266]
[1743243065768,5.89863085,606.17,605.73,0.27049266]
[1743243065968,3.74891174,606.16,605.73,0.27049266]
[1743243066162,3.74891174,606.15,605.73,0.27049266]
[1743243066366,3.74865398,606.14,605.73,0.27049266]
[1743243066565,2.26871636,606.13,605.73,0.27049266]
[1743243066871,2.26871636,606.12,605.74,0.2705318]
[1743243067066,2.26871636,606.11,605.73,0.2705318]
[1743243067266,2.26871636,606.1,605.75,0.2705318]
[1743243067465,2.26871636,606.09,605.76,0.2705318]
[1743243067663,0.92496101,606.08,605.73,0.2705318]
[1743243067866,0.92496101,606.07,605.74,0.2705318]
[1743243068168,0.92496101,606.06,605.72,0.2705318]
[1743243068362,0.92496101,606.05,605.73,0.2705318]
[1743243068562,1.08399375,606.07,605.72,0.2705318]
[1743243068765,0.92510434,606.06,605.73,0.2705318]
[1743243068960,1.08399375,606.04,605.72,0.2705318]
[1743243069162,1.34382226,606.03,605.73,0.2705318]
[1743243069463,1.34382226,606.03,605.71,1.573]
[1743243069464,2.2689918,606.02,605.74,0.2705318]
[1743243069663,2.26907533,606.01,605.72,0.2705318]
[1743243069863,0.92516954,606.0,605.72,0.2705318]
[1743243070062,1.08399375,606.03,605.72,0.2705318]
[1743243070260,0.92520523,606.02,605.72,0.2705318]
[1743243070462,1.63375407,606.34,605.72,0.2705318]
[1743243070663,6.39573346,606.33,605.72,0.2705318]
[1743243070867,6.39573346,606.32,605.72,0.2705318]
[1743243071068,6.39573346,606.31,605.72,0.2705318]
[1743243071364,6.39573346,606.3,605.72,0.2705318]
[1743243071567,6.39573346,606.29,605.72,0.2705318]
[1743243071764,6.39573346,606.28,605.72,0.2705318]
[1743243071962,6.39573346,606.27,605.72,0.2705318]
[1743243072266,6.39573346,606.26,605.72,0.2705318]
[1743243072569,6.39573346,606.25,605.72,0.2705318]
[1743243072768,6.39573346,606.24,605.88,1.23221343]
[1743243072966,5.90089759,606.23,605.89,0.2705318]
[1743243073166,5.90089759,606.22,605.89,0.2705318]
[1743243073365,3.75016065,606.21,605.89,0.2705318]
[1743243073565,3.75016065,606.2,605.89,0.2705318]
[1743243073767,3.75016065,606.19,605.9,0.27046113]
[1743243073965,3.75016065,606.18,605.89,0.27046113]
[1743243074174,3.75062412,606.17,605.9,0.27046113]
[1743243074362,2.269576,606.16,605.89,0.27046113]
[1743243074562,3.75061789,606.15,605.9,0.27046113]
[1743243074766,2.269576,606.14,605.91,0.27046113]
[1743243074966,2.269576,606.13,605.92,0.27046113]
[1743243075164,2.269576,606.12,605.93,0.27046113]
[1743243075369,2.269576,606.11,605.93,0.27046113]
[1743243075567,0.92536541,606.1,605.93,0.27046113]
[1743243075768,0.92536541,606.09,605.93,0.27046113]
[1743243075969,0.92536541,606.08,605.93,0.27046113]
[1743243076169,1.08372228,606.08,605.93,0.27046113]
[1743243077065,1.08372228,606.07,605.93,0.27046113]
[1743243077670,1.63375407,606.36,605.93,0.27046113]
[1743243077871,6.39935058,606.35,605.93,0.27046113]
[1743243078069,6.39935058,606.34,605.93,0.27046113]
[1743243078267,2.90224991,606.33,605.93,0.27046113]
[1743243078468,6.39938264,606.32,605.93,0.27046113]
[1743243078672,6.39938264,606.31,605.93,0.27046113]
[1743243078873,6.39938264,606.3,605.93,0.27046113]
[1743243079072,6.39938264,606.29,605.92,0.27046113]
[1743243079273,5.90456063,606.28,605.92,0.27046113]
[1743243079574,5.90456063,606.27,605.92,0.27046113]
[1743243079770,5.90456063,606.26,605.92,0.27046113]
[1743243079975,5.90456063,606.25,605.92,0.27046113]
[1743243080169,3.75247895,606.24,605.92,0.27046113]
[1743243080372,3.75247895,606.23,605.92,0.27046113]
[1743243080572,3.75247895,606.22,605.92,0.27046113]
[1743243080867,3.75247895,606.22,605.71,1.573]
[1743243080868,2.27098486,606.21,605.98,1.23221343]
[1743243081070,0.92593381,606.2,605.98,1.23221343]
[1743243081371,1.63375407,606.39,605.99,1.76946278]
[1743243081372,0.92593381,606.19,605.99,1.76946278]
[1743243081573,2.81945383,606.21,606.0,0.27046278]
[1743243081976,1.08440532,606.19,606.0,0.27046278]
[1743243082875,1.08440532,606.18,606.0,0.27046278]
[1743243083271,1.08440532,606.18,606.07,1.23221343]
[1743243083470,1.63375407,606.44,606.08,0.27046278]
[1743243083674,6.40484098,606.43,606.08,0.27046278]
[1743243083974,6.40484098,606.43,606.07,1.23221343]
[1743243083975,6.40484098,606.42,606.07,1.23221343]
[1743243084175,6.40484098,606.41,606.08,0.27042843]
[1743243084368,8.03923652,606.4,606.08,0.27042843]
[1743243084574,1.63375407,606.36,606.08,0.27042843]
[1743243084776,6.40484098,606.35,606.08,0.27042843]
[1743243084977,6.40484098,606.34,606.08,0.27042843]
[1743243085174,6.40484098,606.33,606.08,0.27042843]
[1743243085374,6.40484098,606.32,606.08,0.27042843]
[1743243085571,6.40484098,606.31,606.08,0.27042843]
[1743243085777,6.40484098,606.3,606.07,0.27042843]
[1743243085978,6.40484098,606.29,606.08,0.27043123]
[1743243086276,6.40484098,606.28,606.06,1.23221343]
[1743243086476,6.40585334,606.27,606.06,1.23221343]
[1743243086678,6.40585334,606.26,606.06,1.23221343]
[1743243086873,6.40585334,606.25,606.06,1.23221343]
[1743243087074,6.40585334,606.24,606.06,1.23221343]
[1743243087272,6.40585334,606.23,606.06,1.23221343]
[1743243087472,6.40585334,606.22,606.06,1.23221343]
[1743243087672,6.40585334,606.21,606.04,1.031]
[1743243087879,6.40585334,606.2,606.04,1.031]
[1743243088071,6.40585334,606.19,606.04,1.031]
[1743243088276,6.40585334,606.18,606.04,1.031]
[1743243088576,6.41119705,606.17,606.05,0.27046934]
[1743243088774,6.41119705,606.16,606.05,0.27046934]
[1743243088979,6.41119705,606.15,606.05,0.27046934]
[1743243089178,6.41119705,606.14,606.05,0.27046934]
[1743243089375,6.41120063,606.13,606.05,0.27046934]
[1743243089675,6.41121946,606.12,606.04,1.031]
[1743243089874,6.41121946,606.11,606.04,1.031]
[1743243090076,5.91638996,606.1,606.04,1.031]
[1743243090279,6.41123282,606.09,606.04,1.031]
[1743243090474,6.41123282,606.08,606.04,1.031]